[Event "44th Chess Olympiad Women 2022"]
[Site "Chennai"]
[Date "2022.07.29"]
[Round "1.34"]
[White "Prasad, Tanvi"]
[Black "Andric, Jelena"]
[Result "0-1"]
[WhiteElo "1165"]
[BlackElo "1993"]
[Annotator "NA RC"]
[PlyCount "144"]
[EventDate "2022.??.??"]
[TimeControl "60"]

1. d4 {[%emt 0:00:03]} e6 {[%emt 0:00:13]} 2. c4 {[%emt 0:00:09]} b6 {[%emt 0:
00:00]} 3. Nc3 {[%emt 0:00:11]} Bb7 {[%emt 0:00:44]} 4. Nf3 {[%emt 0:00:23]}
Nf6 {[%emt 0:02:45]} 5. Bg5 {[%emt 0:00:38]} Be7 {[%emt 0:02:00]} 6. e3 {
[%emt 0:01:18]} d6 {[%emt 0:01:21]} 7. Bd3 {[%emt 0:02:07]} Nbd7 {[%emt 0:00:
00]} 8. O-O {[%emt 0:02:03]} h6 {[%emt 0:05:31]} 9. Bh4 {[%emt 0:00:57]} O-O {
[%emt 0:15:27]} 10. h3 {[%emt 0:01:44]} Re8 {[%emt 0:06:38]} 11. Qc2 {[%emt 0:
00:00]} c5 {[%emt 0:07:49]} 12. Be2 {[%emt 0:08:37]} cxd4 {[%emt 0:07:20]} 13.
exd4 {[%emt 0:00:59]} Rc8 {[%emt 0:01:12]} 14. a4 {[%emt 0:03:35]} Bxf3 {
[%emt 0:02:50]} 15. gxf3 {[%emt 0:01:50]} d5 {[%emt 0:03:43]} 16. b3 {[%emt 0:
00:00]} Nh5 {[%emt 0:08:02]} 17. Bg3 {[%emt 0:01:01]} Bh4 {[%emt 0:02:56]} 18.
Kh2 {[%emt 0:00:44]} Nxg3 {[%emt 0:08:27]} 19. fxg3 {[%emt 0:00:15]} Qc7 {
[%emt 0:01:57]} 20. Rg1 {[%emt 0:01:50]} Bf6 {[%emt 0:02:23]} 21. Rad1 {
[%emt 0:01:59]} dxc4 {[%emt 0:01:38]} 22. bxc4 {[%emt 0:03:23]} Qb8 {[%emt 0:
00:00]} 23. Ne4 {[%emt 0:03:02]} Be7 {[%emt 0:01:15]} 24. Qd3 {[%emt 0:03:40]}
Red8 {[%emt 0:00:53]} 25. Rc1 {[%emt 0:04:55]} Nc5 {[%emt 0:00:55]} 26. Nxc5 {
[%emt 0:01:25]} Bxc5 {[%emt 0:00:19]} 27. Rgd1 {[%emt 0:02:49]} Rxd4 {[%emt 0:
00:00]} 28. Qb3 {[%emt 0:00:46]} Rcd8 {[%emt 0:01:42]} 29. Rxd4 {[%emt 0:02:31]
} Rxd4 {[%emt 0:00:11]} 30. Rd1 {[%emt 0:01:05]} Qe5 {[%emt 0:02:39]} 31. Qc2 {
[%emt 0:03:08]} Qe3 {[%emt 0:01:17]} 32. Bd3 {[%emt 0:05:16]} Qxf3 {[%emt 0:00:
00]} 33. Bh7+ {[%emt 0:01:39]} Kh8 {[%emt 0:00:36]} 34. Rxd4 {[%emt 0:01:25]}
Bxd4 {[%emt 0:00:10]} 35. Be4 {[%emt 0:00:44]} Qf2+ {[%emt 0:03:24]} 36. Qxf2 {
[%emt 0:00:13]} Bxf2 {[%emt 0:00:04]} 37. Kg2 {[%emt 0:01:18]} Bc5 {[%emt 0:00:
00]} 38. Kf3 {[%emt 0:00:31]} Kg8 {[%emt 0:02:06]} 39. Bc6 {[%emt 0:00:45]} Kf8
{[%emt 0:00:29]} 40. g4 {[%emt 0:00:51]} Ke7 {[%emt 0:00:12]} 41. Ke4 {[%emt 0:
00:00]} Kd6 {[%emt 0:32:48]} 42. Be8 {[%emt 0:02:20]} f6 {[%emt 0:00:54]} 43.
Bg6 {[%emt 0:02:35]} Bf2 {[%emt 0:00:00]} 44. Be8 {[%emt 0:00:00]} Kc5 {
[%emt 0:00:00]} 45. Kd3 {[%emt 0:00:00]} Kb4 {[%emt 0:00:00]} 46. Bd7 {[%emt 0:
00:00]} e5 {[%emt 0:00:00]} 47. Bb5 {[%emt 0:00:00]} Ka5 {[%emt 0:00:00]} 48.
Bc6 {[%emt 0:00:00]} Kb4 {[%emt 0:00:00]} 49. Bb5 {[%emt 0:00:00]} Kb3 {
[%emt 0:00:00]} 50. Bc6 {[%emt 0:00:00]} Bc5 {[%emt 0:00:00]} 51. Bb5 {[%emt 0:
00:00]} g6 {[%emt 0:01:12]} 52. Be8 {[%emt 0:00:00]} f5 {[%emt 0:01:54]} 53.
Bxg6 {[%emt 0:00:00]} e4+ {[%emt 0:02:15]} 54. Ke2 {[%emt 0:00:00]} fxg4 {
[%emt 0:00:15]} 55. hxg4 {[%emt 0:00:00]} e3 {[%emt 0:00:16]} 56. Be8 {[%emt 0:
00:00]} Kxc4 {[%emt 0:00:17]} 57. Bb5+ {[%emt 0:00:00]} Kb4 {[%emt 0:00:31]}
58. Kd1 {[%emt 0:00:11]} a6 {[%emt 0:00:28]} 59. Bxa6 {[%emt 0:01:45]} Kxa4 {
[%emt 0:00:05]} 60. Be2 {[%emt 0:00:17]} b5 {[%emt 0:00:34]} 61. Kc2 {[%emt 0:
00:00]} b4 {[%emt 0:00:44]} 62. Bc4 {[%emt 0:00:49]} Ka3 {[%emt 0:00:45]} 63.
Kb1 {[%emt 0:01:24]} b3 {[%emt 0:00:15]} 64. Bd3 {[%emt 0:00:58]} Kb4 {[%emt 0:
00:00]} 65. Kc1 {[%emt 0:05:23]} Kc3 {[%emt 0:00:24]} 66. Be2 {[%emt 0:00:56]}
b2+ {[%emt 0:00:12]} 67. Kb1 {[%emt 0:00:28]} Kd2 {[%emt 0:00:31]} 68. Bf1 {
[%emt 0:00:58]} Bd4 {[%emt 0:00:16]} 69. Bc4 {[%emt 0:00:31]} e2 {[%emt 0:00:
00]} 70. Bxe2 {[%emt 0:00:15]} Kxe2 {[%emt 0:00:05]} 71. Ka2 {[%emt 0:00:06]}
Kf3 {[%emt 0:00:09]} 72. Kb1 {[%emt 0:00:10]} Kxg4 {[%emt 0:00:05]} 0-1

[Event "44th Chess Olympiad Women 2022"]
[Site "Chennai"]
[Date "2022.07.29"]
[Round "1.34"]
[White "Sewak, Aarti"]
[Black "Agrest, Inna"]
[Result "0-1"]
[WhiteElo "1412"]
[BlackElo "2217"]
[Annotator "NA"]
[PlyCount "76"]
[EventDate "2022.??.??"]
[TimeControl "60"]

1. d4 {[%emt 0:00:02]} Nf6 {[%emt 0:00:07]} 2. g3 {[%emt 0:00:36]} g6 {[%emt 0:
00:00]} 3. Nf3 {[%emt 0:00:29]} Bg7 {[%emt 0:00:12]} 4. Bg2 {[%emt 0:00:42]}
O-O {[%emt 0:00:26]} 5. O-O {[%emt 0:00:31]} d6 {[%emt 0:00:15]} 6. Nc3 {
[%emt 0:00:39]} Na6 {[%emt 0:02:41]} 7. Bg5 {[%emt 0:01:35]} c5 {[%emt 0:01:50]
} 8. e3 {[%emt 0:01:22]} Rb8 {[%emt 0:02:16]} 9. Bxf6 {[%emt 0:02:03]} Bxf6 {
[%emt 0:00:50]} 10. a3 {[%emt 0:01:53]} b6 {[%emt 0:02:02]} 11. Nd5 {[%emt 0:
00:00]} Bg7 {[%emt 0:01:15]} 12. Re1 {[%emt 0:01:35]} Bb7 {[%emt 0:01:47]} 13.
Nf4 {[%emt 0:00:56]} e5 {[%emt 0:02:18]} 14. Ne2 {[%emt 0:01:23]} Nc7 {[%emt 0:
00:00]} 15. c3 {[%emt 0:01:23]} Re8 {[%emt 0:05:34]} 16. Nh4 {[%emt 0:03:28]}
e4 {[%emt 0:08:33]} 17. Bh1 {[%emt 0:09:18]} Ne6 {[%emt 0:02:57]} 18. Nf4 {
[%emt 0:03:55]} Nxf4 {[%emt 0:04:39]} 19. exf4 {[%emt 0:01:07]} cxd4 {[%emt 0:
00:00]} 20. cxd4 {[%emt 0:03:38]} Qf6 {[%emt 0:05:09]} 21. Re2 {[%emt 0:00:28]}
d5 {[%emt 0:01:31]} 22. Rd2 {[%emt 0:02:08]} Rbc8 {[%emt 0:01:53]} 23. Qb3 {
[%emt 0:02:47]} Rc4 {[%emt 0:02:16]} 24. Rad1 {[%emt 0:00:00]} Bc6 {[%emt 0:00:
00]} 25. Qe3 {[%emt 0:00:00]} Bd7 {[%emt 0:01:14]} 26. b3 {[%emt 0:00:15]} Rc7
{[%emt 0:01:33]} 27. Bg2 {[%emt 0:00:31]} Rec8 {[%emt 0:00:42]} 28. Rb1 {
[%emt 0:00:47]} Rc1+ {[%emt 0:04:15]} 29. Rd1 {[%emt 0:00:11]} Rxb1 {[%emt 0:
00:00]} 30. Rxb1 {[%emt 0:00:40]} Rc2 {[%emt 0:01:20]} 31. Rd1 {[%emt 0:00:54]}
Qc6 {[%emt 0:01:03]} 32. f3 {[%emt 0:10:07]} Rc3 {[%emt 0:02:11]} 33. Qe2 {
[%emt 0:01:46]} f5 {[%emt 0:03:47]} 34. Qb2 {[%emt 0:02:53]} Rc2 {[%emt 0:00:
00]} 35. Qa1 {[%emt 0:01:07]} e3 {[%emt 0:01:01]} 36. Re1 {[%emt 0:01:59]} e2 {
[%emt 0:02:22]} 37. Bh3 {[%emt 0:01:17]} Rd2 {[%emt 0:01:42]} 38. Kg2 {[%emt 0:
00:00]} Qc2 {[%emt 0:00:52]} 0-1

[Event "44th Chess Olympiad Women 2022"]
[Site "Chennai"]
[Date "2022.07.29"]
[Round "1.35"]
[White "Gusmao, Maria do Ceu"]
[Black "Richards, Heather S"]
[Result "0-1"]
[WhiteElo "1442"]
[BlackElo "2146"]
[Annotator "NA RC"]
[PlyCount "71"]
[EventDate "2022.??.??"]
[TimeControl "60"]

1. c4 {[%emt 0:00:02]} d6 {[%emt 0:00:10]} 2. Nc3 {[%emt 0:00:20]} e5 {[%emt 0:
00:00]} 3. a3 {[%emt 0:00:50]} f5 {[%emt 0:00:18]} 4. e3 {[%emt 0:01:09]} Nf6 {
[%emt 0:00:20]} 5. d3 {[%emt 0:01:33]} c6 {[%emt 0:02:25]} 6. b3 {[%emt 0:00:
00]} g6 {[%emt 0:00:27]} 7. h3 {[%emt 0:01:28]} Bg7 {[%emt 0:00:06]} 8. Rb1 {
[%emt 0:00:25]} O-O {[%emt 0:00:07]} 9. Bb2 {[%emt 0:02:12]} Nbd7 {[%emt 0:00:
00]} 10. h4 {[%emt 0:05:01]} Nc5 {[%emt 0:02:43]} 11. Be2 {[%emt 0:04:09]} h6 {
[%emt 0:25:58]} 12. b4 {[%emt 0:00:49]} Ne6 {[%emt 0:00:08]} 13. Nh3 {[%emt 0:
00:00]} a5 {[%emt 0:02:42]} 14. f4 {[%emt 0:02:24]} axb4 {[%emt 0:01:09]} 15.
axb4 {[%emt 0:00:48]} Ng4 {[%emt 0:03:51]} 16. g3 {[%emt 0:08:00]} Nxe3 {
[%emt 0:00:35]} 17. Qc1 {[%emt 0:01:59]} exf4 {[%emt 0:03:22]} 18. Nxf4 {
[%emt 0:02:14]} Nxf4 {[%emt 0:00:09]} 19. gxf4 {[%emt 0:00:42]} Re8 {[%emt 0:
00:00]} 20. Kf2 {[%emt 0:07:44]} d5 {[%emt 0:04:47]} 21. Nd1 {[%emt 0:06:34]}
d4 {[%emt 0:05:19]} 22. Rh3 {[%emt 0:04:33]} Qd6 {[%emt 0:02:11]} 23. Kg3 {
[%emt 0:04:12]} g5 {[%emt 0:02:34]} 24. hxg5 {[%emt 0:05:00]} hxg5 {[%emt 0:00:
00]} 25. Kf2 {[%emt 0:01:07]} Qxf4+ {[%emt 0:00:07]} 26. Kg1 {[%emt 0:01:53]}
g4 {[%emt 0:01:06]} 27. Rxe3 {[%emt 0:04:37]} dxe3 {[%emt 0:01:15]} 28. Bxg7 {
[%emt 0:03:44]} Kxg7 {[%emt 0:00:05]} 29. Kg2 {[%emt 0:01:45]} Rh8 {[%emt 0:00:
00]} 30. Qxe3 {[%emt 0:01:16]} Rh2+ {[%emt 0:00:35]} 31. Kg1 {[%emt 0:02:26]}
Qxe3+ {[%emt 0:00:00]} 32. Nxe3 {[%emt 0:01:04]} Rxe2 {[%emt 0:00:02]} 33. Nf1
{[%emt 0:00:39]} Raa2 {[%emt 0:00:09]} 34. Rd1 {[%emt 0:02:19]} f4 {[%emt 0:00:
00]} 35. Kh1 {[%emt 0:00:02]} Kg6 36. Kg1 0-1

[Event "44th Chess Olympiad Women 2022"]
[Site "Chennai"]
[Date "2022.07.29"]
[Round "1.35"]
[White "Phan, Nguyen Mai Chi"]
[Black "dos Santos, Elfiana"]
[Result "1-0"]
[WhiteElo "2139"]
[BlackElo "1560"]
[Annotator "NA RC"]
[PlyCount "71"]
[EventDate "2022.??.??"]
[TimeControl "60"]

1. d4 {[%emt 0:00:05]} d5 {[%emt 0:00:15]} 2. Nf3 {[%emt 0:00:08]} Nf6 {
[%emt 0:00:23]} 3. e3 {[%emt 0:00:50]} e6 {[%emt 0:00:23]} 4. Bd3 {[%emt 0:00:
00]} Be7 {[%emt 0:00:53]} 5. Nbd2 {[%emt 0:00:51]} Nc6 {[%emt 0:01:00]} 6. a3 {
[%emt 0:00:42]} Bd7 {[%emt 0:01:51]} 7. b3 {[%emt 0:01:56]} O-O {[%emt 0:00:54]
} 8. Bb2 {[%emt 0:01:15]} b6 {[%emt 0:02:04]} 9. h4 {[%emt 0:04:19]} a6 {
[%emt 0:03:49]} 10. Qe2 {[%emt 0:03:22]} Nb8 {[%emt 0:02:45]} 11. Ne5 {[%emt 0:
00:00]} Bb5 {[%emt 0:02:14]} 12. c4 {[%emt 0:02:24]} dxc4 {[%emt 0:02:07]} 13.
bxc4 {[%emt 0:00:09]} Bc6 {[%emt 0:01:25]} 14. Nxc6 {[%emt 0:04:13]} Nxc6 {
[%emt 0:00:48]} 15. g4 {[%emt 0:03:27]} Ne8 {[%emt 0:05:55]} 16. Be4 {[%emt 0:
00:00]} Qd7 {[%emt 0:01:54]} 17. Qf3 {[%emt 0:00:56]} Nxd4 {[%emt 0:04:02]} 18.
exd4 {[%emt 0:08:00]} Rd8 {[%emt 0:01:19]} 19. Bc6 {[%emt 0:02:01]} Qd6 {
[%emt 0:02:50]} 20. Ne4 {[%emt 0:00:47]} Qxc6 {[%emt 0:03:09]} 21. Nf6+ {
[%emt 0:02:30]} Bxf6 {[%emt 0:00:59]} 22. Qxc6 {[%emt 0:00:11]} Bxd4 {[%emt 0:
00:00]} 23. Bxd4 {[%emt 0:01:04]} Rxd4 {[%emt 0:00:24]} 24. Rd1 {[%emt 0:00:23]
} Rxg4 {[%emt 0:01:33]} 25. Rd8 {[%emt 0:00:12]} Nf6 {[%emt 0:05:25]} 26. Qxc7
{[%emt 0:02:23]} g6 {[%emt 0:01:32]} 27. Rh3 {[%emt 0:03:08]} Rxd8 {[%emt 0:00:
00]} 28. Qxd8+ {[%emt 0:00:07]} Kg7 {[%emt 0:00:14]} 29. Rf3 {[%emt 0:00:42]}
Re4+ {[%emt 0:01:30]} 30. Kd1 {[%emt 0:04:12]} Ng4 {[%emt 0:01:49]} 31. Qc7 {
[%emt 0:01:34]} Ne5 {[%emt 0:01:21]} 32. Re3 {[%emt 0:00:29]} Rxe3 {[%emt 0:00:
00]} 33. fxe3 {[%emt 0:00:15]} Nd3 {[%emt 0:01:15]} 34. Kd2 {[%emt 0:00:29]}
Nb2 {[%emt 0:00:24]} 35. Qc6 {[%emt 0:00:37]} Nxc4+ {[%emt 0:01:43]} 36. Qxc4 {
[%emt 0:00:05]} 1-0

[Event "44th Chess Olympiad Women 2022"]
[Site "Chennai"]
[Date "2022.07.29"]
[Round "1.35"]
[White "Tilman, Zulmira Americo"]
[Black "Ryjanova, Julia"]
[Result "0-1"]
[WhiteElo "1255"]
[BlackElo "2284"]
[Annotator "ChessBase"]
[PlyCount "88"]
[EventDate "2022.??.??"]
[TimeControl "60"]

1. d4 {[%emt 0:00:07]} Nf6 {[%emt 0:04:38]} 2. c4 {[%emt 0:00:35]} e6 {[%emt 0:
00:00]} 3. Nc3 {[%emt 0:00:47]} Bb4 {[%emt 0:00:20]} 4. Bd2 {[%emt 0:00:56]} b6
{[%emt 0:07:58]} 5. e3 {[%emt 0:02:59]} Bb7 {[%emt 0:01:53]} 6. Nf3 {[%emt 0:
00:00]} O-O {[%emt 0:01:31]} 7. Bd3 {[%emt 0:01:44]} d5 {[%emt 0:03:18]} 8. O-O
{[%emt 0:01:24]} c5 {[%emt 0:04:52]} 9. cxd5 {[%emt 0:05:26]} exd5 {[%emt 0:00:
00]} 10. Qc2 {[%emt 0:05:45]} Nbd7 {[%emt 0:12:06]} 11. Ng5 {[%emt 0:04:58]} h6
{[%emt 0:06:57]} 12. Bh7+ {[%emt 0:00:28]} Kh8 {[%emt 0:00:16]} 13. Bd3 {
[%emt 0:16:45]} hxg5 {[%emt 0:00:50]} 14. h3 {[%emt 0:03:09]} Qe7 {[%emt 0:00:
00]} 15. f4 {[%emt 0:03:12]} Ne4 {[%emt 0:13:02]} 16. Qd1 {[%emt 0:05:35]} g6 {
[%emt 0:02:03]} 17. a3 {[%emt 0:05:42]} Bxc3 {[%emt 0:00:36]} 18. bxc3 {
[%emt 0:00:30]} Rae8 {[%emt 0:03:34]} 19. Ra2 {[%emt 0:01:51]} Nxd2 {[%emt 0:
00:00]} 20. Rxd2 {[%emt 0:00:27]} c4 {[%emt 0:00:58]} 21. Bc2 {[%emt 0:00:37]}
Qxe3+ {[%emt 0:00:12]} 22. Kh1 {[%emt 0:04:54]} gxf4 {[%emt 0:06:36]} 23. Rf3 {
[%emt 0:01:20]} Qe1+ {[%emt 0:00:14]} 24. Qxe1 {[%emt 0:00:20]} Rxe1+ {[%emt 0:
00:00]} 25. Kh2 {[%emt 0:00:52]} Nf6 {[%emt 0:02:40]} 26. Rxf4 {[%emt 0:01:02]}
Ne4 {[%emt 0:00:23]} 27. Rd1 {[%emt 0:03:25]} Rxd1 {[%emt 0:00:21]} 28. Bxd1 {
[%emt 0:00:37]} Nxc3 {[%emt 0:00:19]} 29. Bc2 {[%emt 0:00:59]} Kg7 {[%emt 0:00:
00]} 30. Rf3 {[%emt 0:02:16]} Ne2 {[%emt 0:00:48]} 31. a4 {[%emt 0:00:55]} Nxd4
{[%emt 0:00:11]} 32. Rf2 {[%emt 0:01:12]} Nxc2 {[%emt 0:00:06]} 33. Rxc2 {
[%emt 0:00:39]} Rc8 {[%emt 0:00:07]} 34. Kg1 {[%emt 0:00:22]} d4 {[%emt 0:00:
00]} 35. Kf1 {[%emt 0:00:40]} c3 {[%emt 0:00:21]} 36. Ke2 {[%emt 0:00:48]} Be4
{[%emt 0:00:37]} 37. Rc1 {[%emt 0:00:28]} d3+ {[%emt 0:00:13]} 38. Ke3 {
[%emt 0:00:20]} d2 {[%emt 0:00:15]} 39. Ra1 {[%emt 0:00:59]} Bc2 {[%emt 0:00:
00]} 40. Ke2 {[%emt 0:01:03]} Re8+ {[%emt 0:00:13]} 41. Kf2 {[%emt 0:30:48]}
d1=Q {[%emt 0:30:22]} 42. Ra3 {[%emt 0:01:53]} Qe1+ {[%emt 0:00:33]} 43. Kf3 {
[%emt 0:00:22]} Qe3+ {[%emt 0:00:14]} 44. Kg4 {[%emt 0:00:51]} Re4# {[%emt 0:
00:00]} 0-1

[Event "44th Chess Olympiad Women 2022"]
[Site "Chennai"]
[Date "2022.07.29"]
[Round "1.35"]
[White "Zhang, Jilin"]
[Black "da Silva, Sonizia A.Tilman"]
[Result "1-0"]
[WhiteElo "2212"]
[BlackElo "1507"]
[Annotator "NA RC"]
[PlyCount "99"]
[EventDate "2022.??.??"]
[TimeControl "60"]

1. e4 {[%emt 0:00:03]} Nc6 {[%emt 0:00:04]} 2. Nf3 {[%emt 0:00:41]} e5 {
[%emt 0:00:29]} 3. d4 {[%emt 0:00:53]} exd4 {[%emt 0:01:55]} 4. Nxd4 {[%emt 0:
00:00]} Nxd4 {[%emt 0:01:54]} 5. Qxd4 {[%emt 0:00:07]} b6 {[%emt 0:00:38]} 6.
Nc3 {[%emt 0:02:45]} Nf6 {[%emt 0:01:04]} 7. Bg5 {[%emt 0:08:31]} Bc5 {[%emt 0:
00:00]} 8. Qd2 {[%emt 0:03:30]} h6 {[%emt 0:01:40]} 9. Be3 {[%emt 0:03:49]} Bb4
{[%emt 0:01:04]} 10. f3 {[%emt 0:02:39]} Qe7 {[%emt 0:00:50]} 11. a3 {[%emt 0:
00:00]} Bd6 {[%emt 0:01:55]} 12. O-O-O {[%emt 0:08:47]} Bb7 {[%emt 0:01:25]}
13. g4 {[%emt 0:03:32]} Bc6 {[%emt 0:01:37]} 14. Nb5 {[%emt 0:06:43]} Be5 {
[%emt 0:02:11]} 15. Nd4 {[%emt 0:00:44]} Bb7 {[%emt 0:02:22]} 16. Nf5 {[%emt 0:
00:00]} Qf8 {[%emt 0:00:48]} 17. Bd4 {[%emt 0:06:05]} Bxd4 {[%emt 0:00:52]} 18.
Qxd4 {[%emt 0:00:09]} O-O-O {[%emt 0:00:35]} 19. Qa4 {[%emt 0:00:58]} Kb8 {
[%emt 0:00:42]} 20. Ba6 {[%emt 0:00:45]} Bc6 {[%emt 0:01:15]} 21. Qc4 {[%emt 0:
00:00]} g6 {[%emt 0:00:54]} 22. Nd4 {[%emt 0:01:11]} Qd6 {[%emt 0:01:35]} 23.
Kb1 {[%emt 0:03:49]} Nh7 {[%emt 0:03:16]} 24. h4 {[%emt 0:04:47]} f5 {[%emt 0:
00:00]} 25. gxf5 {[%emt 0:03:58]} gxf5 {[%emt 0:00:50]} 26. Nxf5 {[%emt 0:00:
00]} Qe6 {[%emt 0:01:25]} 27. Qxe6 {[%emt 0:05:31]} dxe6 {[%emt 0:00:25]} 28.
Nxh6 {[%emt 0:00:16]} Rdf8 {[%emt 0:01:06]} 29. Ng4 {[%emt 0:05:44]} Bb7 {
[%emt 0:01:21]} 30. Bxb7 {[%emt 0:00:37]} Kxb7 {[%emt 0:00:17]} 31. Ne5 {
[%emt 0:00:02]} Nf6 {[%emt 0:00:57]} 32. Ng6 {[%emt 0:00:07]} Nh5 {[%emt 0:00:
00]} 33. Nxh8 {[%emt 0:00:25]} Rxh8 {[%emt 0:00:10]} 34. Rdg1 {[%emt 0:00:15]}
Rf8 {[%emt 0:00:21]} 35. Rg5 {[%emt 0:00:16]} Nf4 {[%emt 0:00:51]} 36. h5 {
[%emt 0:00:11]} Rh8 {[%emt 0:01:46]} 37. h6 {[%emt 0:00:10]} e5 {[%emt 0:00:37]
} 38. h7 {[%emt 0:00:08]} Rxh7 {[%emt 0:02:20]} 39. Rxh7 {[%emt 0:02:27]} a5 {
[%emt 0:02:22]} 40. Rxe5 {[%emt 0:00:00]} Ng6 {[%emt 0:00:17]} 41. Rg5 {
[%emt 0:28:08]} Nf4 {[%emt 0:30:27]} 42. Rgg7 {[%emt 0:00:11]} Ne6 {[%emt 0:00:
00]} 43. Re7 {[%emt 0:00:08]} Ng5 {[%emt 0:01:03]} 44. Rxc7+ {[%emt 0:00:18]}
Kb8 {[%emt 0:00:16]} 45. Rb7+ {[%emt 0:00:07]} Kc8 {[%emt 0:00:36]} 46. Rhc7+ {
[%emt 0:00:09]} Kd8 {[%emt 0:00:14]} 47. Rg7 {[%emt 0:00:13]} Kc8 {[%emt 0:00:
00]} 48. Rbe7 {[%emt 0:00:09]} Kd8 {[%emt 0:00:44]} 49. Ra7 {[%emt 0:00:08]}
Nf7 {[%emt 0:01:53]} 50. Rg8# {[%emt 0:00:13]} 1-0

[Event "44th Chess Olympiad Women 2022"]
[Site "Chennai"]
[Date "2022.07.29"]
[Round "1.36"]
[White "Alboredo, Julia"]
[Black "Ben Said, Safa"]
[Result "1-0"]
[WhiteElo "2264"]
[BlackElo "1564"]
[Annotator "NA RC"]
[PlyCount "51"]
[EventDate "2022.??.??"]
[TimeControl "60"]

1. e4 {[%emt 0:00:04]} e6 {[%emt 0:00:15]} 2. d4 {[%emt 0:00:15]} d5 {[%emt 0:
00:00]} 3. Nc3 {[%emt 0:00:16]} Nf6 {[%emt 0:01:14]} 4. e5 {[%emt 0:00:13]}
Nfd7 {[%emt 0:00:07]} 5. f4 {[%emt 0:00:16]} c5 {[%emt 0:00:30]} 6. Nf3 {
[%emt 0:00:16]} Nc6 {[%emt 0:00:47]} 7. Be3 {[%emt 0:00:21]} cxd4 {[%emt 0:00:
00]} 8. Nxd4 {[%emt 0:00:17]} Nxd4 {[%emt 0:01:00]} 9. Bxd4 {[%emt 0:00:11]}
Bb4 {[%emt 0:04:09]} 10. Qg4 {[%emt 0:02:56]} O-O {[%emt 0:03:40]} 11. O-O-O {
[%emt 0:02:30]} Bc5 {[%emt 0:11:01]} 12. h4 {[%emt 0:10:49]} Qe7 {[%emt 0:00:
00]} 13. h5 {[%emt 0:02:58]} Bxd4 {[%emt 0:01:27]} 14. Rxd4 {[%emt 0:07:48]} f6
{[%emt 0:00:43]} 15. exf6 {[%emt 0:09:02]} Qxf6 {[%emt 0:00:51]} 16. Qd1 {
[%emt 0:01:49]} Qh6 {[%emt 0:04:38]} 17. Qd2 {[%emt 0:01:29]} Nf6 {[%emt 0:00:
00]} 18. Be2 {[%emt 0:00:42]} b6 {[%emt 0:08:47]} 19. g4 {[%emt 0:02:04]} e5 {
[%emt 0:10:26]} 20. g5 {[%emt 0:07:28]} Ne4 {[%emt 0:00:45]} 21. Rxe4 {[%emt 0:
00:00]} Qc6 {[%emt 0:00:58]} 22. Nxd5 {[%emt 0:05:57]} Kh8 {[%emt 0:04:49]} 23.
h6 {[%emt 0:01:55]} Bf5 {[%emt 0:05:34]} 24. hxg7+ {[%emt 0:00:15]} Kxg7 {
[%emt 0:00:09]} 25. Rxe5 {[%emt 0:00:10]} Rfe8 {[%emt 0:01:14]} 26. Rxf5 {
[%emt 0:00:25]} 1-0

[Event "44th Chess Olympiad Women 2022"]
[Site "Chennai"]
[Date "2022.07.29"]
[Round "1.36"]
[White "Haouas, Zeineb"]
[Black "Gazola, Vanessa Ramos"]
[Result "0-1"]
[WhiteElo "1337"]
[BlackElo "2000"]
[Annotator "NA RC"]
[PlyCount "67"]
[EventDate "2022.??.??"]
[TimeControl "60"]

1. d4 {[%emt 0:00:04]} Nf6 {[%emt 0:00:13]} 2. c4 {[%emt 0:00:08]} g6 {[%emt 0:
00:00]} 3. Nc3 {[%emt 0:00:14]} d5 {[%emt 0:00:13]} 4. e3 {[%emt 0:00:24]} Bg7
{[%emt 0:00:28]} 5. Bd3 {[%emt 0:01:19]} O-O {[%emt 0:02:08]} 6. Nf3 {[%emt 0:
00:00]} c5 {[%emt 0:00:16]} 7. O-O {[%emt 0:01:30]} cxd4 {[%emt 0:02:00]} 8.
exd4 {[%emt 0:01:07]} Nc6 {[%emt 0:03:50]} 9. a3 {[%emt 0:14:03]} Bg4 {[%emt 0:
00:00]} 10. Be3 {[%emt 0:11:49]} Rc8 {[%emt 0:19:11]} 11. cxd5 {[%emt 0:04:33]}
Nxd5 {[%emt 0:00:13]} 12. Be4 {[%emt 0:01:07]} Nxe3 {[%emt 0:11:26]} 13. fxe3 {
[%emt 0:00:08]} Na5 {[%emt 0:01:00]} 14. Bd3 {[%emt 0:15:17]} Be6 {[%emt 0:00:
00]} 15. Nd2 {[%emt 0:03:29]} Bxd4 {[%emt 0:02:16]} 16. exd4 {[%emt 0:07:54]}
Qxd4+ {[%emt 0:00:11]} 17. Kh1 {[%emt 0:00:12]} Qxd3 {[%emt 0:00:09]} 18. Rf3 {
[%emt 0:12:09]} Qd4 {[%emt 0:05:25]} 19. Qe1 {[%emt 0:04:00]} Nc4 {[%emt 0:00:
00]} 20. Nxc4 {[%emt 0:03:19]} Qxc4 {[%emt 0:03:46]} 21. Qf2 {[%emt 0:03:38]}
Qc5 {[%emt 0:06:18]} 22. Qf1 {[%emt 0:02:20]} Rcd8 {[%emt 0:06:56]} 23. Qe1 {
[%emt 0:05:50]} h6 {[%emt 0:04:50]} 24. Rg3 {[%emt 0:02:00]} Kh7 {[%emt 0:00:
00]} 25. Rc1 {[%emt 0:01:15]} Qd4 {[%emt 0:01:33]} 26. Rd1 {[%emt 0:00:45]} Qb6
{[%emt 0:00:47]} 27. b4 {[%emt 0:01:00]} Rxd1 {[%emt 0:00:16]} 28. Qxd1 {
[%emt 0:00:13]} Rd8 {[%emt 0:00:56]} 29. Qe1 {[%emt 0:01:55]} Qd4 {[%emt 0:00:
00]} 30. Rf3 {[%emt 0:01:02]} a6 {[%emt 0:02:11]} 31. Rf2 {[%emt 0:00:36]} Rc8
{[%emt 0:01:16]} 32. Ne4 {[%emt 0:00:50]} Qxe4 {[%emt 0:01:00]} 33. Qd2 {
[%emt 0:01:00]} Qb1+ {[%emt 0:00:15]} 34. Qd1 {[%emt 0:00:29]} 0-1

[Event "44th Chess Olympiad Women 2022"]
[Site "Chennai"]
[Date "2022.07.29"]
[Round "1.36"]
[White "Meddeb, Chadha"]
[Black "Librelato, Kathie Goulart"]
[Result "0-1"]
[WhiteElo "1561"]
[BlackElo "2255"]
[Annotator "ChessBase"]
[PlyCount "68"]
[EventDate "2022.??.??"]
[TimeControl "60"]

1. e4 {[%emt 0:00:06]} e5 {[%emt 0:00:06]} 2. Nf3 {[%emt 0:00:51]} Nc6 {
[%emt 0:00:07]} 3. d4 {[%emt 0:00:11]} exd4 {[%emt 0:00:07]} 4. Nxd4 {[%emt 0:
00:00]} Nf6 {[%emt 0:00:07]} 5. Nxc6 {[%emt 0:04:56]} bxc6 {[%emt 0:00:10]} 6.
Bd3 {[%emt 0:08:36]} d5 {[%emt 0:00:18]} 7. e5 {[%emt 0:02:46]} Ng4 {[%emt 0:
00:00]} 8. Bf4 {[%emt 0:06:57]} Bc5 {[%emt 0:02:41]} 9. O-O {[%emt 0:03:57]} g5
{[%emt 0:01:56]} 10. Bg3 {[%emt 0:12:37]} h5 {[%emt 0:01:21]} 11. h3 {[%emt 0:
00:00]} h4 {[%emt 0:01:29]} 12. Bh2 {[%emt 0:02:08]} Nxh2 {[%emt 0:11:09]} 13.
Kxh2 {[%emt 0:00:03]} Bd4 {[%emt 0:01:20]} 14. c3 {[%emt 0:06:34]} Bxe5+ {
[%emt 0:00:14]} 15. Kg1 {[%emt 0:02:27]} Qf6 {[%emt 0:06:01]} 16. Nd2 {[%emt 0:
00:00]} g4 {[%emt 0:29:56]} 17. f4 {[%emt 0:04:48]} Bxf4 {[%emt 0:05:23]} 18.
Qe1+ {[%emt 0:00:16]} Be6 {[%emt 0:00:15]} 19. Qf2 {[%emt 0:00:12]} Bh2+ {
[%emt 0:00:26]} 20. Kh1 {[%emt 0:02:00]} Qxf2 {[%emt 0:00:17]} 21. Rxf2 {
[%emt 0:00:02]} Bg3 {[%emt 0:00:21]} 22. Re2 {[%emt 0:00:30]} gxh3 {[%emt 0:00:
00]} 23. gxh3 {[%emt 0:00:21]} O-O-O {[%emt 0:00:23]} 24. Rf1 {[%emt 0:08:58]}
Rde8 {[%emt 0:03:02]} 25. Nb3 {[%emt 0:09:38]} Bxh3 {[%emt 0:05:41]} 26. Rxe8+
{[%emt 0:13:41]} Rxe8 {[%emt 0:00:07]} 27. Bf5+ {[%emt 0:00:08]} Bxf5 {[%emt 0:
00:00]} 28. Rxf5 {[%emt 0:00:02]} h3 {[%emt 0:07:41]} 29. Rf1 {[%emt 0:01:14]}
f5 {[%emt 0:02:31]} 30. Nd4 {[%emt 0:00:39]} f4 {[%emt 0:00:07]} 31. Nxc6 {
[%emt 0:00:58]} f3 {[%emt 0:02:14]} 32. Nd4 {[%emt 0:00:17]} f2 {[%emt 0:00:06]
} 33. Nf5 {[%emt 0:00:33]} Bf4 {[%emt 0:01:16]} 34. a4 {[%emt 0:00:59]} Re1 {
[%emt 0:00:18]} 0-1